bitfinex-derivatives/quotes_SOLF0:USTF0_20260316
["timestamp","ask_amount","ask_price","bid_price","bid_amount"]
[1773665555273,3.84824841,93.859,93.801,3.8416925]
[1773665557675,3.84824841,93.849,93.801,3.8416925]
[1773665559775,3.84824841,93.839,93.787,3.8416925]
[1773665560671,3.63431863,93.83,93.787,3.8416925]
[1773665560873,3.84824841,93.839,93.787,3.8416925]
[1773665564182,3.84824841,93.849,93.791,3.8416925]
[1773665564976,3.63431863,93.84,93.791,3.8416925]
[1773665565181,3.84824841,93.839,93.791,3.8416925]
[1773665567084,3.84824841,93.849,93.791,3.8416925]
[1773665567683,3.84824841,93.839,93.791,3.8416925]
[1773665570385,3.84824841,93.852,93.801,3.8416925]
[1773665572885,3.67372679,93.849,93.801,3.8416925]
[1773665573086,7.90790578,93.905,93.763,19.194]
[1773665573087,3.67372679,93.839,93.791,3.70488981]
[1773665574591,3.73570064,93.829,93.778,3.74130377]
[1773665574991,3.73570064,93.829,93.78,3.63431863]
[1773665575189,3.73570064,93.829,93.781,3.74130377]
[1773665578903,3.73570064,93.819,93.768,3.74130377]
[1773665580406,3.73570064,93.799,93.745,3.74130377]
[1773665585704,3.73570064,93.789,93.738,33.56]
[1773665585910,3.73570064,93.789,93.739,3.74130377]
[1773665589809,3.73570064,93.789,93.738,33.56]
[1773665589810,3.63431863,93.81,93.751,3.74130377]
[1773665590008,3.73570064,93.809,93.751,3.74130377]
[1773665590802,8.31072489,93.855,93.738,33.56]
[1773665590803,3.73570064,93.789,93.738,33.56]
[1773665591106,3.73570064,93.769,93.713,3.74130377]
[1773665591308,3.73570064,93.769,93.714,3.74130377]
[1773665594410,3.63431863,93.78,93.721,3.74130377]
[1773665595215,3.73570064,93.769,93.721,3.74130377]
[1773665596710,3.73570064,93.759,93.713,33.58]
[1773665598417,3.73570064,93.759,93.727,0.06750684]
[1773665599123,3.73570064,93.749,93.727,0.06750684]
[1773665599520,3.73570064,93.749,93.713,33.58]
[1773665602724,3.73570064,93.749,93.722,0.06722532]
[1773665605924,3.80702459,93.763,93.722,0.06722532]
[1773665606526,3.80702459,93.763,93.715,3.70790052]
[1773665608428,19.185,93.806,93.715,3.70790052]
[1773665608429,3.80702459,93.759,93.715,3.70790052]
[1773665610034,3.80702459,93.759,93.713,33.58]
[1773665613431,3.80702459,93.749,93.713,33.58]
[1773665615242,3.80702459,93.749,93.702,3.70790052]
[1773665616739,3.80702459,93.749,93.687,3.70790052]
[1773665616940,19.185,93.806,93.687,3.70790052]
[1773665616941,3.80702459,93.739,93.687,3.70790052]
[1773665618344,3.80702459,93.739,93.704,0.06744925]
[1773665624644,3.80702459,93.729,93.704,0.06744925]
[1773665624840,3.80702459,93.719,93.674,3.70790052]
[1773665627442,3.80702459,93.732,93.68,3.64096874]
[1773665627647,3.80702459,93.732,93.681,3.70790052]
[1773665629548,0.06829396,93.716,93.681,3.70790052]
[1773665630140,3.87531855,93.716,93.664,3.70790052]
[1773665630951,3.87531855,93.716,93.663,33.58]
[1773665630952,3.80702459,93.699,93.663,33.58]
[1773665631346,3.80702459,93.713,93.661,3.70790052]
[1773665632544,3.8730314,93.709,93.661,3.70790052]
[1773665633148,3.64096874,93.69,93.647,3.72401071]
[1773665633451,3.8730314,93.699,93.647,3.72401071]
[1773665634151,0.06956819,93.682,93.647,3.72401071]
[1773665634452,0.06956819,93.682,93.646,33.58]
[1773665634853,0.06956819,93.682,93.647,3.75894682]
[1773665639554,0.06956819,93.682,93.651,3.75894682]
[1773665639750,3.54749946,93.712,93.651,3.75894682]
[1773665639947,3.54749946,93.712,93.661,3.75894682]
[1773665641154,3.54749946,93.712,93.677,0.06832253]
[1773665641455,3.64096874,93.71,93.677,0.06832253]
[1773665641656,3.54749946,93.726,93.677,3.82726935]
[1773665642151,3.54749946,93.726,93.677,3.75894682]
[1773665643857,3.54749946,93.726,93.692,0.068125]
[1773665645459,3.54749946,93.719,93.692,0.068125]
[1773665645954,3.54749946,93.719,93.664,3.75894682]
[1773665646156,3.54749946,93.709,93.65,3.75894682]
[1773665646459,3.54749946,93.699,93.65,3.75894682]
[1773665646758,0.0684645,93.689,93.65,3.75894682]
[1773665647458,0.0684645,93.689,93.651,3.75894682]
[1773665647755,0.0684645,93.689,93.66,3.64096874]
[1773665647962,0.0684645,93.689,93.661,3.75894682]
[1773665648461,3.54749946,93.714,93.67,3.64096874]
[1773665648660,3.54749946,93.714,93.667,3.75894682]
[1773665653356,3.54749946,93.728,93.671,3.75894682]
[1773665653562,3.54749946,93.728,93.681,3.75894682]
[1773665656864,3.54749946,93.728,93.647,3.75894682]
[1773665657061,3.54749946,93.728,93.661,3.75894682]
[1773665657667,3.54749946,93.728,93.671,3.75894682]
[1773665658066,3.54749946,93.728,93.685,0.06724897]
[1773665669577,3.76522678,93.719,93.685,0.06724897]
[1773665670175,3.76522678,93.719,93.659,3.74896646]
[1773665670379,3.76522678,93.719,93.671,3.74896646]
[1773665673980,3.76522678,93.719,93.658,3.74896646]
[1773665674175,3.76522678,93.719,93.686,0.06851682]
[1773665677785,8.26523288,93.755,93.686,0.06851682]
[1773665677786,3.64337772,93.73,93.686,3.81748328]
[1773665677983,3.76522678,93.733,93.686,3.81748328]
[1773665678182,3.76522678,93.733,93.686,0.06851682]
[1773665678383,3.76522678,93.733,93.673,3.74896646]
[1773665678789,3.76522678,93.729,93.673,3.74896646]
[1773665679284,3.76522678,93.719,93.673,3.74896646]
[1773665679683,3.76522678,93.719,93.692,0.06770149]
[1773665692391,3.76859244,93.709,93.661,3.74896646]
[1773665697198,3.65323855,93.729,93.681,3.84788493]
[1773665700505,3.65323855,93.699,93.641,3.84788493]
[1773665701197,3.65323855,93.699,93.651,3.84788493]
[1773665701604,3.64337772,93.71,93.651,3.84788493]
[1773665702198,3.65323855,93.715,93.661,3.84788493]
[1773665703404,3.65323855,93.709,93.661,3.84788493]
[1773665704208,3.65323855,93.699,93.641,3.84788493]
[1773665704408,37.39636866,93.75,93.641,3.84788493]
[1773665704409,3.65323855,93.689,93.641,3.84788493]
[1773665704810,3.65323855,93.741,93.641,3.84788493]
[1773665705105,3.64337772,93.7,93.641,3.84788493]
[1773665705309,3.65323855,93.699,93.641,3.84788493]
[1773665706010,0.06771373,93.679,93.641,3.84788493]
[1773665711717,0.06771373,93.679,93.651,3.84788493]
[1773665712216,3.65323855,93.699,93.651,3.84788493]
[1773665722424,0.06749133,93.684,93.651,3.84788493]
[1773665727826,0.06749133,93.684,93.622,33.58]
[1773665727827,3.64337772,93.77,93.671,3.90665159]
[1773665728022,3.64337772,93.77,93.67,3.64337772]
[1773665728023,3.66496566,93.769,93.711,3.90665159]
[1773665729024,3.66496566,93.759,93.711,3.90665159]
[1773665729427,3.66496566,93.759,93.731,0.06756869]
[1773665730519,3.66496566,93.749,93.689,3.90665159]
[1773665730721,3.66496566,93.739,93.689,3.90665159]
[1773665731621,8.34417093,93.789,93.672,33.58]
[1773665731622,3.66496566,93.787,93.701,3.90665159]
[1773665731831,3.66496566,93.759,93.701,3.90665159]
[1773665733430,3.66496566,93.759,93.71,3.64091419]
[1773665734433,3.66496566,93.759,93.701,3.90665159]
[1773665739133,3.66496566,93.759,93.711,3.90665159]
[1773665742438,3.66496566,93.759,93.7,3.64091419]
[1773665742736,3.66496566,93.759,93.701,3.90665159]
[1773665745533,8.30118195,93.808,93.661,3.90665159]
[1773665745534,3.66496566,93.719,93.661,3.90665159]
[1773665745926,3.66496566,93.719,93.671,3.90665159]
[1773665746124,3.64091419,93.73,93.671,3.90665159]
[1773665748431,3.66496566,93.732,93.671,3.90665159]
[1773665749143,3.66496566,93.729,93.671,3.90665159]
[1773665751348,3.64091419,93.72,93.671,3.90665159]
[1773665754945,7.53897746,93.72,93.671,3.90665159]
[1773665755346,3.89806327,93.719,93.671,3.90665159]
[1773665755545,3.89806327,93.709,93.651,3.63178244]
[1773665759855,3.64091419,93.72,93.661,3.63178244]
[1773665760152,3.89806327,93.719,93.661,3.63178244]
[1773665765959,3.89806327,93.699,93.661,3.63178244]
[1773665769068,0.06765375,93.689,93.661,3.63178244]
[1773665780470,3.89806327,93.714,93.661,3.63178244]
[1773665784869,3.89806327,93.714,93.678,0.06782396]
[1773665795082,8.30118195,93.737,93.691,3.91725833]
[1773665795277,13.21744228,93.786,93.678,0.06782396]
[1773665795278,3.93459695,93.756,93.701,3.91725833]
[1773665795781,3.93459695,93.749,93.689,3.91725833]
[1773665796873,3.93459695,93.749,93.69,3.6443398]
[1773665797076,3.93459695,93.739,93.676,3.91725833]
[1773665797283,3.93459695,93.729,93.676,3.91725833]
[1773665799782,3.93459695,93.729,93.693,0.06758627]
[1773665800885,3.93459695,93.741,93.694,3.91725833]
[1773665807590,3.93459695,93.741,93.708,0.06750341]
[1773665807785,3.6443398,93.74,93.708,0.06750341]
[1773665807987,3.93459695,93.729,93.683,3.91725833]
[1773665821310,3.93459695,93.729,93.691,3.76111356]
[1773665823898,3.68028257,93.749,93.691,3.76111356]
[1773665825014,3.68028257,93.739,93.691,3.76111356]
[1773665827810,3.68028257,93.75,93.701,3.76111356]
[1773665828112,3.68028257,93.769,93.721,3.76111356]
[1773665829213,0.06726735,93.754,93.721,3.76111356]
[1773665832218,0.06726735,93.754,93.731,3.76111356]
[1773665832820,3.68028257,93.772,93.731,3.76111356]
[1773665836620,3.68028257,93.789,93.731,3.76111356]
[1773665837221,3.68028257,93.789,93.741,3.76111356]
[1773665839816,3.68028257,93.825,93.741,3.76111356]
[1773665840016,3.68028257,93.799,93.741,3.76111356]
[1773665841920,3.68028257,93.799,93.751,3.76111356]
[1773665843223,3.68028257,93.799,93.723,3.77414227]
[1773665843517,3.58675428,93.789,93.731,3.77414227]
[1773665845928,3.58675428,93.789,93.741,3.77414227]
[1773665853431,33.58,93.83,93.741,3.77414227]
[1773665853432,3.58675428,93.779,93.741,3.77414227]
[1773665854029,3.58675428,93.829,93.741,3.77414227]
[1773665854233,3.58675428,93.799,93.741,3.77414227]
[1773665855029,0.06721734,93.779,93.741,3.77414227]
[1773665857132,3.65397162,93.779,93.741,3.77414227]
[1773665862838,3.65397162,93.779,93.731,3.77414227]
[1773665865941,0.06721734,93.779,93.731,3.77414227]
[1773665866336,0.06721734,93.779,93.741,3.77414227]
[1773665866739,3.58675428,93.803,93.722,33.58]
[1773665866740,3.58675428,93.803,93.761,3.77414227]
[1773665866939,3.58675428,93.819,93.761,3.77414227]
[1773665868933,3.58675428,93.799,93.741,3.77414227]
[1773665871044,3.58675428,93.799,93.751,3.77414227]
[1773665874047,3.58675428,93.799,93.766,0.06813387]
[1773665875943,3.65676864,93.789,93.737,3.7447035]
[1773665877348,0.06782731,93.772,93.737,3.7447035]
[1773665878246,3.72459595,93.772,93.737,3.7447035]
[1773665882951,3.65676864,93.769,93.733,33.58]
[1773665883247,0.06782731,93.772,93.677,19.211]
[1773665883248,3.65676864,93.759,93.708,3.7447035]
[1773665886153,3.65676864,93.749,93.708,3.7447035]
[1773665886353,3.65676864,93.739,93.704,33.58]
[1773665886551,3.65676864,93.739,93.704,37.3247035]
[1773665886753,3.65676864,93.739,93.705,3.7447035]
[1773665887149,3.65676864,93.739,93.704,33.58]
[1773665889051,3.65676864,93.739,93.692,3.7447035]
[1773665889052,3.65676864,93.729,93.678,3.7447035]
[1773665889250,8.27718093,93.781,93.678,3.7447035]
[1773665889450,3.63790861,93.74,93.68,3.63790861]
[1773665889657,3.63790861,93.74,93.681,3.7447035]
[1773665889858,3.65676864,93.739,93.681,3.7447035]
[1773665890656,3.65676864,93.739,93.691,3.7447035]
[1773665892155,3.65676864,93.767,93.711,3.7447035]
[1773665893552,0.06723408,93.748,93.711,3.7447035]
[1773665895155,3.65676864,93.747,93.697,3.7447035]
[1773665898751,0.06817898,93.731,93.697,3.7447035]
[1773665899350,0.06817898,93.731,93.701,3.7447035]
[1773665905863,0.06817898,93.731,93.689,3.5588615]
[1773665906260,3.9961854,93.731,93.689,3.5588615]
[1773665906460,3.9961854,93.731,93.69,3.63790861]
[1773665906665,3.9961854,93.731,93.691,3.5588615]
[1773665911474,0.06817898,93.731,93.691,3.5588615]
[1773665920086,3.92800642,93.729,93.679,37.1588615]
[1773665920277,3.92800642,93.729,93.68,3.5588615]
[1773665924481,0.06740554,93.714,93.68,3.5588615]
[1773665937987,0.06740554,93.714,93.681,3.59389489]
[1773665940784,19.193,93.77,93.673,33.6]
[1773665940785,3.87008185,93.751,93.691,3.59389489]
[1773665940987,3.87008185,93.751,93.701,3.59389489]
[1773665943288,3.87008185,93.729,93.681,3.59389489]
[1773665944890,3.87008185,93.748,93.701,3.59389489]
[1773665949798,3.87008185,93.748,93.715,0.06736958]
[1773665962503,3.87008185,93.748,93.686,3.59389489]
[1773665962504,3.70120888,93.729,93.686,3.59389489]
[1773665964504,13.21744228,93.791,93.673,33.6]
[1773665964505,3.70120888,93.749,93.691,3.76187684]
[1773665964696,3.70120888,93.749,93.701,3.76187684]
[1773665969713,0.06845867,93.734,93.701,3.76187684]
[1773665970417,3.76966755,93.734,93.689,3.76187684]
[1773665973721,0.06845867,93.734,93.689,3.76187684]
[1773665975514,0.06845867,93.734,93.69,3.64187056]
[1773665975722,0.06845867,93.734,93.691,3.76187684]
[1773665979014,0.06845867,93.734,93.701,3.76187684]
[1773665979519,3.70120888,93.746,93.701,3.76187684]
[1773665979912,3.70120888,93.769,93.701,3.76187684]
[1773665980422,0.06724078,93.733,93.701,3.76187684]
[1773665981018,3.70120888,93.757,93.701,3.76187684]
[1773665988516,3.70120888,93.769,93.711,3.76187684]
[1773665988723,3.70120888,93.759,93.711,3.76187684]
[1773665994727,0.06812041,93.744,93.711,3.76187684]
[1773666001735,3.8132579,93.77,93.711,3.76187684]
[1773666001930,3.8132579,93.769,93.711,3.76187684]
[1773666002127,3.8132579,93.769,93.721,3.61903618]
[1773666002326,3.8132579,93.789,93.731,3.61903618]
[1773666002929,3.8132579,93.779,93.731,3.61903618]
[1773666004741,3.8132579,93.787,93.741,3.61903618]
[1773666006240,3.8132579,93.787,93.697,33.6]
[1773666006241,3.8132579,93.8,93.751,3.61903618]
[1773666006440,3.8132579,93.799,93.751,3.61903618]
[1773666007236,3.8132579,93.799,93.739,3.61903618]
[1773666007433,3.8132579,93.789,93.739,3.61903618]
[1773666008732,3.8132579,93.789,93.755,0.0681294]
[1773666018955,3.8132579,93.779,93.755,0.0681294]
[1773666019155,3.8132579,93.779,93.728,3.61903618]
[1773666024456,0.06750307,93.763,93.728,3.61903618]
[1773666024751,3.82287159,93.759,93.711,3.89947627]
[1773666027363,3.82287159,93.779,93.721,3.89947627]
[1773666028161,3.82287159,93.769,93.721,3.89947627]
[1773666033257,19.182,93.821,93.721,3.89947627]
[1773666033258,3.82287159,93.759,93.721,3.89947627]
[1773666034561,3.82287159,93.759,93.701,3.89947627]
[1773666034865,0.06726347,93.749,93.701,3.89947627]
[1773666036264,0.06726347,93.749,93.711,3.89947627]
[1773666036464,0.06726347,93.749,93.721,3.89947627]
[1773666036667,3.82287159,93.771,93.731,3.89947627]
[1773666036860,3.82287159,93.789,93.731,3.89947627]
[1773666037668,3.82287159,93.809,93.741,3.89947627]
[1773666037861,3.82287159,93.807,93.741,3.89947627]
[1773666038062,3.82287159,93.807,93.751,3.96679741]
[1773666039361,3.82287159,93.799,93.751,3.96679741]
[1773666039867,3.82287159,93.799,93.751,3.89947627]
[1773666044462,3.82287159,93.799,93.766,0.06724648]
[1773666053778,3.6370208,93.81,93.766,0.06724648]
[1773666053779,3.85994589,93.809,93.767,3.84208706]
[1773666055476,3.85994589,93.809,93.766,0.06724648]
[1773666056374,3.85994589,93.799,93.766,0.06724648]
[1773666056878,3.85994589,93.799,93.756,3.84208706]
[1773666058078,3.85994589,93.809,93.756,3.84208706]
[1773666058774,3.85994589,93.799,93.756,3.84208706]
[1773666059370,3.85994589,93.799,93.768,0.06730258]
[1773666060678,7.49696669,93.81,93.768,3.90938964]
[1773666060875,3.85994589,93.809,93.768,0.06730258]
[1773666061279,3.85994589,93.809,93.757,3.84208706]
[1773666061779,3.85994589,93.799,93.757,3.84208706]
[1773666068886,3.85994589,93.789,93.731,3.84208706]
[1773666071381,3.85994589,93.769,93.719,3.84208706]
[1773666072792,3.85994589,93.779,93.731,3.84208706]
[1773666073083,3.85994589,93.789,93.731,3.84208706]
[1773666073990,3.6370208,93.78,93.731,3.84208706]
[1773666075289,3.85994589,93.789,93.731,3.84208706]
[1773666077587,3.85994589,93.789,93.741,3.84208706]
[1773666078087,3.85994589,93.789,93.688,19.209]
[1773666078088,3.85994589,93.819,93.761,3.84208706]
[1773666078488,3.85994589,93.819,93.771,3.84208706]
[1773666080793,3.85994589,93.847,93.781,3.84208706]
[1773666080994,19.168,93.892,93.781,3.84208706]
[1773666080995,3.85994589,93.839,93.781,3.84208706]
[1773666081890,3.85994589,93.839,93.738,52.779]
[1773666081891,3.85994589,93.839,93.791,3.84208706]
[1773666082894,3.73392111,93.829,93.791,3.84208706]
[1773666084388,3.73392111,93.829,93.781,3.82927693]
[1773666085593,3.73392111,93.839,93.781,3.82927693]
[1773666089397,3.73392111,93.839,93.801,0.06729607]
[1773666095006,3.73392111,93.829,93.801,0.06729607]
[1773666095506,3.73392111,93.829,93.792,3.82927693]
[1773666097707,3.73392111,93.839,93.801,0.06746682]
[1773666101610,3.73392111,93.839,93.801,3.89674375]
[1773666108210,3.73392111,93.839,93.801,0.06746682]
[1773666108412,3.63438149,93.83,93.801,0.06746682]
[1773666109718,3.73392111,93.839,93.801,0.06746682]
[1773666110818,3.73392111,93.829,93.801,0.06746682]
[1773666111210,3.73392111,93.809,93.739,3.82927693]
[1773666111410,3.63438149,93.79,93.739,3.82927693]
[1773666111610,3.63438149,93.78,93.739,3.82927693]
[1773666112722,3.63438149,93.79,93.739,3.82927693]
[1773666113422,7.3264371,93.79,93.739,3.82927693]
[1773666114025,3.69205561,93.789,93.739,3.82927693]
[1773666114719,3.63438149,93.79,93.739,3.82927693]
[1773666118023,3.69205561,93.814,93.76,3.63438149]
[1773666118228,3.69205561,93.825,93.771,3.88767261]
[1773666119726,3.69205561,93.819,93.771,3.88767261]
[1773666121824,3.63438149,93.81,93.741,3.88767261]
[1773666122030,3.69205561,93.809,93.751,3.88767261]
[1773666122826,0.06808788,93.789,93.751,3.88767261]
[1773666124231,3.63438149,93.82,93.761,3.88767261]
[1773666124432,7.3264371,93.82,93.761,3.88767261]
[1773666124832,3.69205561,93.819,93.761,3.88767261]
[1773666126036,3.69205561,93.819,93.781,0.0677412]
[1773666132034,3.69205561,93.819,93.781,3.95541381]
[1773666132936,3.69205561,93.819,93.781,0.0677412]
[1773666139441,3.69205561,93.843,93.782,3.88767261]
[1773666139639,3.69205561,93.843,93.791,3.88767261]
[1773666140436,3.69205561,93.829,93.778,3.88767261]
[1773666140741,3.69205561,93.829,93.764,3.88767261]
[1773666141541,3.69205561,93.829,93.771,3.88767261]
[1773666143237,3.69205561,93.829,93.791,0.06808649]
[1773666144047,3.54480619,93.819,93.791,0.06808649]
[1773666144548,3.54480619,93.819,93.771,3.88767261]
[1773666147441,3.54480619,93.819,93.786,0.06801166]
[1773666153057,3.54480619,93.809,93.759,3.80550189]
[1773666154165,3.63438149,93.8,93.759,3.80550189]
[1773666154463,3.54480619,93.809,93.759,3.80550189]
[1773666154864,3.54480619,93.809,93.761,3.80550189]
[1773666155166,3.54480619,93.82,93.771,3.80550189]
[1773666155966,9.94309113,93.868,93.744,33.58]
[1773666155967,3.54480619,93.832,93.781,3.80550189]
[1773666156157,3.54480619,93.849,93.791,3.80550189]
[1773666156562,3.54480619,93.849,93.811,3.80550189]
[1773666156860,3.63438149,93.87,93.811,3.80550189]
[1773666156861,3.54480619,93.869,93.811,3.80550189]
[1773666157261,3.54480619,93.869,93.821,3.80550189]
[1773666157461,3.54480619,93.869,93.81,3.63438149]
[1773666157661,3.54480619,93.869,93.801,3.80550189]
[1773666158953,3.54480619,93.869,93.811,3.80550189]
[1773666159152,0.0679873,93.844,93.811,3.80550189]
[1773666161364,3.89775391,93.889,93.831,3.69061027]
[1773666162169,3.89775391,93.889,93.841,3.69061027]
[1773666163367,3.62942757,93.91,93.802,3.69061027]
[1773666163570,3.89775391,93.909,93.85,3.62942757]
[1773666163771,3.89775391,93.909,93.851,3.69061027]
[1773666164470,3.89775391,93.909,93.871,0.06800797]
[1773666165267,3.89775391,93.899,93.871,0.06800797]
[1773666165867,3.89775391,93.899,93.851,3.69061027]
[1773666168968,3.89775391,93.889,93.84,3.69061027]
[1773666169377,3.89775391,93.869,93.812,3.69061027]
[1773666169576,3.89775391,93.859,93.8,7.32003784]
[1773666169874,3.89775391,93.859,93.801,3.69061027]
[1773666170677,3.89775391,93.859,93.712,178.0]
[1773666170678,3.89775391,93.859,93.811,3.69061027]
[1773666171272,3.89775391,93.874,93.811,3.69061027]
[1773666171472,3.89775391,93.874,93.821,3.69061027]
[1773666172774,3.65165989,93.869,93.821,3.69061027]
[1773666179387,3.81693254,93.849,93.8,3.90469553]
[1773666180285,3.81693254,93.839,93.8,3.90469553]
[1773666180488,3.81693254,93.829,93.781,3.90469553]
[1773666180984,3.62942757,93.84,93.781,3.90469553]
[1773666181889,7.44636011,93.84,93.781,3.90469553]
[1773666182287,0.06848902,93.82,93.781,3.90469553]
[1773666184896,3.88542156,93.82,93.779,33.56]
[1773666185090,0.06848902,93.82,93.78,7.5341231]
[1773666185295,0.06848902,93.82,93.781,3.90469553]
[1773666186399,3.88542156,93.82,93.781,3.90469553]
[1773666186594,0.06848902,93.82,93.781,3.90469553]
[1773666188591,0.06848902,93.82,93.791,3.90469553]
[1773666193502,3.81693254,93.819,93.779,33.56]
[1773666196305,3.81693254,93.809,93.779,33.56]
[1773666196605,3.81693254,93.809,93.763,3.90469553]
[1773666196606,0.06848902,93.82,93.771,3.90469553]
[1773666196807,0.06848902,93.82,93.773,3.90469553]
[1773666197306,3.81693254,93.824,93.773,3.90469553]
[1773666198704,0.06750933,93.808,93.773,3.90469553]
[1773666205516,0.06750933,93.808,93.774,33.56]
[1773666206404,3.63553238,93.808,93.774,33.56]
[1773666207408,0.06750933,93.808,93.775,3.90639345]
[1773666208207,0.06750933,93.808,93.781,3.90639345]
[1773666208607,3.56802305,93.849,93.791,3.90639345]
[1773666211206,3.56802305,93.839,93.78,3.62942757]
[1773666211416,3.56802305,93.829,93.778,3.90639345]
[1773666213219,3.56802305,93.819,93.774,33.56]
[1773666213408,3.56802305,93.819,93.775,3.90639345]
[1773666215112,3.56802305,93.809,93.774,33.56]
[1773666215317,3.56802305,93.809,93.721,26.41510598]
[1773666215318,3.56802305,93.799,93.747,33.56]
[1773666215514,3.56802305,93.799,93.747,37.46639345]
[1773666215710,3.56802305,93.799,93.748,3.90639345]
[1773666216217,3.56802305,93.799,93.764,0.06729805]
[1773666217807,3.62942757,93.79,93.764,0.06729805]
[1773666218007,3.56802305,93.789,93.764,0.06729805]
[1773666218412,3.56802305,93.789,93.749,33.56]
[1773666219314,3.56802305,93.789,93.714,3.90639345]
[1773666219615,3.56802305,93.789,93.721,3.90639345]
[1773666219815,3.56802305,93.789,93.723,3.90639345]
[1773666219816,0.06906569,93.778,93.723,3.90639345]
[1773666220111,0.06906569,93.778,93.731,3.90639345]
[1773666221017,0.06906569,93.778,93.741,3.90639345]
[1773666222113,8.32865438,93.838,93.741,3.90639345]
[1773666222315,3.56802305,93.809,93.751,3.90639345]
[1773666223817,3.56802305,93.809,93.75,3.63620128]
[1773666223818,3.63620128,93.82,93.761,3.90639345]
[1773666224319,3.56802305,93.823,93.771,3.90639345]
[1773666227513,3.56802305,93.819,93.757,3.90639345]
[1773666227717,3.56802305,93.809,93.758,33.58]
[1773666229213,3.56802305,93.799,93.758,33.58]
[1773666233126,3.56802305,93.799,93.741,3.90639345]
[1773666236921,7.49422304,93.79,93.741,3.90639345]
[1773666237430,3.85802176,93.789,93.741,3.90639345]
[1773666237929,3.85802176,93.789,93.756,0.06732708]
[1773666238727,3.85802176,93.809,93.756,3.98452328]
[1773666239529,3.85802176,93.809,93.761,3.9171962]
[1773666239931,3.85802176,93.823,93.761,3.9171962]
[1773666240533,3.85802176,93.819,93.761,3.9171962]
[1773666241528,3.85802176,93.809,93.761,3.9171962]
[1773666242928,3.85802176,93.809,93.776,0.0688435]
[1773666245228,3.85802176,93.799,93.743,3.9171962]
[1773666245427,3.85802176,93.789,93.743,3.9171962]
[1773666247836,0.06860409,93.775,93.743,3.9171962]
[1773666261439,3.63620128,93.82,93.75,3.63620128]
[1773666261743,3.85802176,93.819,93.751,3.9171962]
[1773666262039,3.85802176,93.809,93.751,3.9171962]
[1773666264640,3.85802176,93.809,93.771,0.06742342]
[1773666265846,3.78361593,93.799,93.771,0.06742342]
[1773666266347,3.78361593,93.799,93.751,3.9171962]
[1773666268747,3.78361593,93.799,93.74,3.63620128]
[1773666268748,3.78361593,93.799,93.733,3.61793105]
[1773666269444,3.78361593,93.799,93.741,3.61793105]
[1773666272447,3.78361593,93.789,93.741,3.61793105]
[1773666273651,3.78361593,93.802,93.751,3.61793105]
[1773666274351,3.78361593,93.802,93.767,0.06892724]
[1773666275648,3.78361593,93.799,93.767,0.06892724]
[1773666276043,3.78361593,93.799,93.751,3.61793105]
[1773666277453,3.78361593,93.799,93.766,0.06889779]
[1773666284666,3.78361593,93.812,93.767,3.61793105]
[1773666284862,3.78361593,93.824,93.771,3.61793105]
[1773666289765,3.78361593,93.809,93.788,0.06927745]
[1773666290071,3.78361593,93.809,93.758,3.61793105]
[1773666292166,3.78361593,93.809,93.739,33.58]
[1773666292167,3.78361593,93.809,93.761,3.61793105]
[1773666296567,0.06889634,93.794,93.761,3.61793105]
[1773666298263,9.90827976,93.851,93.739,33.58]
[1773666298264,3.80735921,93.839,93.781,3.67246804]
[1773666298468,3.80735921,93.839,93.791,3.67246804]
[1773666298670,3.80735921,93.859,93.791,3.67246804]
[1773666299069,3.80735921,93.849,93.791,3.67246804]
[1773666299670,3.80735921,93.849,93.811,0.06870494]
[1773666302178,3.80735921,93.849,93.811,3.74117298]
[1773666302483,3.80735921,93.888,93.841,3.67246804]
[1773666304778,3.80735921,93.888,93.805,33.58]
[1773666304779,3.80735921,93.902,93.851,3.67246804]
[1773666306779,3.80735921,93.902,93.867,0.06722087]
[1773666307186,3.80735921,93.919,93.867,3.73968891]
[1773666307684,3.80735921,93.919,93.867,3.67246804]
[1773666308079,3.80735921,93.919,93.871,3.67246804]
[1773666308282,3.80735921,93.933,93.891,3.67246804]
[1773666308477,3.80735921,93.919,93.861,3.67246804]
[1773666309180,3.80735921,93.909,93.861,3.67246804]
[1773666309575,3.80735921,93.909,93.847,3.67246804]
[1773666309775,3.63492234,93.9,93.847,3.67246804]
[1773666310284,3.80735921,93.909,93.847,3.67246804]
[1773666313583,1.85323744,93.986,93.847,3.67246804]
[1773666313584,3.80735921,93.899,93.869,0.06777107]
[1773666313785,3.80735921,93.899,93.847,3.67246804]
[1773666315183,0.06763363,93.882,93.847,3.67246804]
[1773666317585,0.06763363,93.882,93.851,3.67246804]
[1773666318888,19.155,93.956,93.851,3.67246804]
[1773666318889,3.63492234,93.91,93.851,3.67246804]
[1773666319883,3.80735921,93.912,93.851,3.67246804]
[1773666320193,3.63492234,93.91,93.851,3.67246804]
[1773666321286,3.80735921,93.912,93.851,3.67246804]
[1773666321688,3.63492234,93.92,93.851,3.67246804]
[1773666321893,3.80735921,93.928,93.871,3.67246804]
[1773666325386,3.73694751,93.909,93.852,3.71869745]
[1773666326091,3.73694751,93.923,93.861,3.71869745]
[1773666326297,3.73694751,93.923,93.871,3.71869745]
[1773666327693,3.73694751,93.936,93.88,3.63492234]